fUSD/lending_fUSD_20260622
["ID","MTS","AMOUNT","RATE_DAILY","PERIOD"]
[425979633,1782061945000,-500.0,0.00031506,2]
[425979630,1782061945000,-500.0,0.00031506,2]
[425979631,1782061945000,-3422.69,0.00031506,2]
[425979626,1782061945000,-562.86,0.00031506,2]
[425979623,1782061945000,-500.0,0.00031506,2]
[425979621,1782061945000,-500.0,0.00031506,2]
[425979627,1782061945000,-819.78,0.00031506,2]
[425979622,1782061945000,-598.59,0.00031506,2]
[425979635,1782061945000,-549.42,0.00031506,2]
[425979620,1782061945000,-150.0,0.00031506,120]
[425979632,1782061945000,-766.03,0.00031506,2]
[425979653,1782061945000,-500.0,0.00031506,2]
[425979637,1782061945000,-500.0,0.00031506,2]
[425979639,1782061945000,-500.0,0.00031506,2]
[425979636,1782061945000,-500.0,0.00031506,2]
[425979638,1782061945000,-500.0,0.00031506,2]
[425979642,1782061945000,-500.0,0.00031506,2]
[425979650,1782061945000,-663.71,0.00031506,2]
[425979648,1782061945000,-500.0,0.00031506,2]
[425979646,1782061945000,-500.0,0.00031506,2]
[425979652,1782061945000,-567.5,0.00031506,2]
[425979644,1782061945000,-831.45,0.00031506,2]
[425979645,1782061945000,-535.03,0.00031506,2]
[425979649,1782061945000,-500.0,0.00031506,2]
[425979640,1782061945000,-847.94,0.00031506,2]
[425979625,1782061945000,-972.04,0.00031506,2]
[425979593,1782061945000,-500.0,0.00031506,2]
[425979628,1782061945000,-506.54,0.00031506,2]
[425979594,1782061945000,-651.64,0.00031506,2]
[425979601,1782061945000,-1267.5,0.00031506,2]
[425979599,1782061945000,-500.0,0.00031506,2]
[425979605,1782061945000,-500.0,0.00031506,2]
[425979602,1782061945000,-500.0,0.00031506,2]
[425979596,1782061945000,-500.0,0.00031506,2]
[425979597,1782061945000,-923.93,0.00031506,2]
[425979595,1782061945000,-500.0,0.00031506,2]
[425979598,1782061945000,-1369.32,0.00031506,2]
[425979600,1782061945000,-553.48,0.00031506,2]
[425979604,1782061945000,-555.93,0.00031506,2]
[425979603,1782061945000,-597.73,0.00031506,2]
[425979607,1782061945000,-526.65,0.00031506,2]
[425979609,1782061945000,-610.79,0.00031506,2]
[425979616,1782061945000,-500.0,0.00031506,2]
[425979606,1782061945000,-527.94,0.00031506,2]
[425979608,1782061945000,-540.54,0.00031506,2]
[425979615,1782061945000,-591.28,0.00031506,2]
[425979610,1782061945000,-500.0,0.00031506,2]
[425979611,1782061945000,-902.56,0.00031506,2]
[425979612,1782061945000,-529.62,0.00031506,2]
[425979614,1782061945000,-500.0,0.00031506,2]
[425979613,1782061945000,-500.0,0.00031506,2]
[425979629,1782061945000,-534.07,0.00031506,2]
[425979617,1782061945000,-560.08,0.00031506,2]
[425979619,1782061945000,-500.0,0.00031506,2]
[425979618,1782061945000,-597.07,0.00031506,2]
[425979624,1782061945000,-500.0,0.00031506,2]
[425979647,1782061945000,-534.55,0.00031506,2]
[425979643,1782061945000,-741.63,0.00031506,2]
[425979655,1782061945000,-500.0,0.00031506,2]
[425979679,1782061945000,-594.9,0.00031506,2]
[425979681,1782061945000,-803.29,0.00031506,2]
[425979680,1782061945000,-500.0,0.00031506,2]
[425979684,1782061945000,-540.14,0.00031506,2]
[425979687,1782061945000,-7491.39,0.00031506,2]
[425979696,1782061945000,-5224.19,0.00031506,2]
[425979693,1782061945000,-602.92,0.00031506,2]
[425979691,1782061945000,-654.24,0.00031506,2]
[425979697,1782061945000,-500.0,0.00031506,2]
[425979695,1782061945000,-5864.59,0.00031506,2]
[425979694,1782061945000,-500.0,0.00031506,2]
[425979702,1782061945000,-1000.0,0.00031506,2]
[425979677,1782061945000,-500.0,0.00031506,2]
[425979698,1782061945000,-500.0,0.00031506,2]
[425979699,1782061945000,-1118.18,0.00031506,2]
[425979701,1782061945000,-500.0,0.00031506,2]
[425979692,1782061945000,-615.24983362,0.00031506,2]
[425979704,1782061945000,-500.0,0.00031506,2]
[425979705,1782061945000,-500.0,0.00031506,2]
[425979703,1782061945000,-1016.84,0.00031506,2]
[425979706,1782061945000,-570.01716795,0.00031506,2]
[425979708,1782061945000,-1130.66,0.00031506,2]
[425979709,1782061945000,-572.65,0.00031506,2]
[425979710,1782061945000,-6753.8,0.00031506,2]
[425979707,1782061945000,-500.0,0.00031506,2]
[425979651,1782061945000,-670.78,0.00031506,2]
[425979700,1782061945000,-1056.03,0.00031506,2]
[425979685,1782061945000,-500.0,0.00031506,2]
[425979711,1782061945000,-3926.18,0.00031506,2]
[425979683,1782061945000,-500.0,0.00031506,2]
[425979686,1782061945000,-500.0,0.00031506,2]
[425979664,1782061945000,-500.0,0.00031506,2]
[425979656,1782061945000,-628.6118332,0.00031506,2]
[425979658,1782061945000,-1244.82,0.00031506,2]
[425979657,1782061945000,-698.8,0.00031506,2]
[425979654,1782061945000,-1423.29,0.00031506,2]
[425979661,1782061945000,-620.22,0.00031506,2]
[425979659,1782061945000,-952.51,0.00031506,2]
[425979660,1782061945000,-500.0,0.00031506,2]
[425979662,1782061945000,-588.39,0.00031506,2]
[425979666,1782061945000,-2678.53,0.00031506,2]
[425979665,1782061945000,-640.68,0.00031506,2]
[425979667,1782061945000,-678.71,0.00031506,2]
[425979663,1782061945000,-792.91,0.00031506,2]
[425979675,1782061945000,-500.0,0.00031506,2]
[425979682,1782061945000,-1092.63,0.00031506,2]
[425979688,1782061945000,-500.0,0.00031506,2]
[425979689,1782061945000,-214.0876471,0.00031506,2]
[425979690,1782061945000,-3987.32,0.00031506,2]
[425979676,1782061945000,-500.0,0.00031506,2]
[425979674,1782061945000,-690.91,0.00031506,2]
[425979678,1782061945000,-800.23,0.00031506,2]
[425979673,1782061945000,-500.0,0.00031506,2]
[425979670,1782061945000,-893.03,0.00031506,2]
[425979669,1782061945000,-1511.74,0.00031506,2]
[425979668,1782061945000,-508.83,0.00031506,2]
[425979671,1782061945000,-519.3,0.00031506,2]
[425979672,1782061945000,-1318.07,0.00031506,2]
[425979754,1782061946000,-544.71,0.00031506,2]
[425979753,1782061946000,-8949.23,0.00031506,2]
[425979750,1782061946000,-9092.8,0.00031506,2]
[425979751,1782061946000,-3370.08,0.00031506,2]
[425979743,1782061946000,-500.0,0.00031506,2]
[425979745,1782061946000,-1087.92,0.00031506,2]
[425979746,1782061946000,-1094.84,0.00031506,2]
[425979747,1782061946000,-500.0,0.00031506,2]
[425979744,1782061946000,-4501.1,0.00031506,2]
[425979741,1782061946000,-913.85,0.00031506,2]
[425979748,1782061946000,-8104.14,0.00031506,2]
[425979713,1782061946000,-873.86,0.00031506,2]
[425979758,1782061946000,-4428.27,0.00031506,2]
[425979752,1782061946000,-946.16,0.00031506,2]
[425979749,1782061946000,-3218.44,0.00031506,2]
[425979757,1782061946000,-826.36,0.00031506,2]
[425979755,1782061946000,-500.0,0.00031506,2]
[425979760,1782061946000,-6489.37,0.00031506,2]
[425979759,1782061946000,-3434.42,0.00031506,2]
[425979761,1782061946000,-500.0,0.00031506,2]
[425979762,1782061946000,-500.0,0.00031506,2]
[425979763,1782061946000,-6468.05,0.00031506,2]
[425979765,1782061946000,-763.6,0.00031506,2]
[425979766,1782061946000,-2478.59,0.00031506,2]
[425979768,1782061946000,-500.0,0.00031506,2]
[425979756,1782061946000,-6582.69,0.00031506,2]
[425979742,1782061946000,-9631.81,0.00031506,2]
[425979725,1782061946000,-12052.2,0.00031506,2]
[425979740,1782061946000,-500.0,0.00031506,2]
[425979712,1782061946000,-2712.86,0.00031506,2]
[425979714,1782061946000,-4889.99,0.00031506,2]
[425979718,1782061946000,-541.15,0.00031506,2]
[425979719,1782061946000,-1048.26,0.00031506,2]
[425979722,1782061946000,-4756.56,0.00031506,2]
[425979717,1782061946000,-732.43,0.00031506,2]
[425979720,1782061946000,-500.0,0.00031506,2]
[425979716,1782061946000,-741.05,0.00031506,2]
[425979715,1782061946000,-5923.33,0.00031506,2]
[425979721,1782061946000,-500.0,0.00031506,2]
[425979723,1782061946000,-6410.69,0.00031506,2]
[425979724,1782061946000,-605.17,0.00031506,2]
[425979726,1782061946000,-500.0,0.00031506,2]
[425979735,1782061946000,-500.0,0.00031506,2]
[425979737,1782061946000,-4107.48,0.00031506,2]
[425979736,1782061946000,-4867.06,0.00031506,2]
[425979727,1782061946000,-4173.31,0.00031506,2]
[425979728,1782061946000,-2146.6,0.00031506,2]
[425979729,1782061946000,-8253.7,0.00031506,2]
[425979730,1782061946000,-822.03,0.00031506,2]
[425979733,1782061946000,-547.74,0.00031506,2]
[425979734,1782061946000,-9055.22,0.00031506,2]
[425979731,1782061946000,-1547.68,0.00031506,2]
[425979732,1782061946000,-500.0,0.00031506,2]
[425979738,1782061946000,-839.88,0.00031506,2]
[425979739,1782061946000,-500.0,0.00031506,2]
[425979764,1782061946000,-8108.8,0.00031506,2]
[425979786,1782061946000,-500.0,0.00031506,2]
[425979767,1782061946000,-500.0,0.00031506,2]
[425979804,1782061946000,-500.0,0.00031506,2]
[425979794,1782061946000,-1483.1,0.00031506,2]
[425979802,1782061946000,-4815.29,0.00031506,2]
[425979805,1782061946000,-1825.32,0.00031506,2]
[425979807,1782061946000,-3531.97,0.00031506,2]
[425979806,1782061946000,-500.0,0.00031506,2]
[425979809,1782061946000,-8318.01,0.00031506,2]
[425979808,1782061946000,-529.37,0.00031506,2]
[425979812,1782061946000,-2744.45,0.00031506,2]
[425979811,1782061946000,-546.99,0.00031506,2]
[425979810,1782061946000,-4605.85,0.00031506,2]
[425979813,1782061946000,-6111.21,0.00031506,2]
[425979816,1782061946000,-500.0,0.00031506,2]
[425979814,1782061946000,-500.0,0.00031506,2]
[425979815,1782061946000,-3268.54,0.00031506,2]
[425979817,1782061946000,-543.15,0.00031506,2]
[425979821,1782061946000,-500.0,0.00031506,2]
[425979824,1782061946000,-500.0,0.00031506,2]
[425979820,1782061946000,-781.73,0.00031506,2]
[425979818,1782061946000,-6629.64,0.00031506,2]
[425979825,1782061946000,-1000.0,0.00031507,40]
[425979822,1782061946000,-4853.13,0.00031506,2]
[425979819,1782061946000,-1025.57,0.00031506,2]
[425979823,1782061946000,-500.0,0.00031506,2]
[425979769,1782061946000,-514.73,0.00031506,2]
[425979800,1782061946000,-1823.11,0.00031506,2]
[425979803,1782061946000,-8230.87,0.00031506,2]
[425979793,1782061946000,-2013.27,0.00031506,2]
[425979799,1782061946000,-2000.0,0.00031506,2]
[425979770,1782061946000,-3418.67,0.00031506,2]
[425979801,1782061946000,-616.3,0.00031506,2]
[425979772,1782061946000,-10410.98,0.00031506,2]
[425979777,1782061946000,-650.16,0.00031506,2]
[425979774,1782061946000,-10460.79,0.00031506,2]
[425979776,1782061946000,-631.38,0.00031506,2]
[425979775,1782061946000,-742.97,0.00031506,2]
[425979771,1782061946000,-8432.29,0.00031506,2]
[425979779,1782061946000,-6462.79,0.00031506,2]
[425979780,1782061946000,-4131.31,0.00031506,2]
[425979778,1782061946000,-15060.49,0.00031506,2]
[425979792,1782061946000,-670.57,0.00031506,2]
[425979782,1782061946000,-6683.71,0.00031506,2]
[425979773,1782061946000,-981.05,0.00031506,2]
[425979783,1782061946000,-538.42,0.00031506,2]
[425979798,1782061946000,-500.0,0.00031506,2]
[425979784,1782061946000,-629.28,0.00031506,2]
[425979796,1782061946000,-4451.14,0.00031506,2]
[425979795,1782061946000,-709.73,0.00031506,2]
[425979797,1782061946000,-501.49,0.00031506,2]
[425979787,1782061946000,-500.0,0.00031506,2]
[425979790,1782061946000,-500.0,0.00031506,2]
[425979788,1782061946000,-785.35,0.00031506,2]
[425979789,1782061946000,-853.42,0.00031506,2]
[425979785,1782061946000,-500.0,0.00031506,2]
[425979781,1782061946000,-3874.09,0.00031506,2]
[425979791,1782061946000,-500.0,0.00031506,2]
[425979848,1782061947000,-150.0,0.00031643,120]
[425979843,1782061947000,-150.0,0.0003161,2]
[425979846,1782061947000,-150.0,0.0003161,2]
[425979845,1782061947000,-152.86766613,0.0003161,2]
[425979853,1782061947000,-251.0,0.0003168,2]
[425979851,1782061947000,-251.0,0.0003168,2]
[425979850,1782061947000,-251.0,0.0003168,2]
[425979847,1782061947000,-150.0,0.0003161,2]
[425979854,1782061947000,-251.0,0.0003168,2]
[425979844,1782061947000,-150.0,0.0003161,2]
[425979836,1782061947000,-1229.0,0.00031579,2]
[425979849,1782061947000,-501.78,0.0003167,2]
[425979839,1782061947000,-1850.65,0.000316,7]
[425979826,1782061947000,-1000.0,0.00031507,40]
[425979833,1782061947000,-1360.0,0.00031579,2]
[425979840,1782061947000,-150.0,0.0003161,2]
[425979834,1782061947000,-1276.0,0.00031579,2]
[425979838,1782061947000,-6081.0,0.00031579,2]
[425979835,1782061947000,-383.0,0.00031579,2]
[425979832,1782061947000,-3560.0,0.00031579,2]
[425979842,1782061947000,-150.0,0.0003161,2]
[425979830,1782061947000,-501.82455083,0.00031507,2]
[425979841,1782061947000,-150.0,0.0003161,2]
[425979831,1782061947000,-509.0,0.00031542,6]
[425979828,1782061947000,-191.73342667,0.00031507,15]
[425979852,1782061947000,-251.0,0.0003168,2]
[425979827,1782061947000,-7600.0,0.00031507,120]
[425979837,1782061947000,-3647.0,0.00031579,2]
[425979856,1782061947000,-150.317321,0.00031732,52]
[425979829,1782061947000,-150.0,0.00031507,120]
[425979857,1782061947000,-785.0,0.00031735,2]
[425979884,1782061947000,-1160.03,0.0003178,2]
[425979883,1782061947000,-645.4,0.0003178,2]
[425979885,1782061947000,-1512.27,0.0003178,2]
[425979882,1782061947000,-1266.12,0.0003178,2]
[425979886,1782061947000,-238.39952898,0.0003178,2]
[425979881,1782061947000,-500.0,0.0003178,2]
[425979880,1782061947000,-1880.63,0.0003178,2]
[425979879,1782061947000,-500.0,0.0003178,2]
[425979877,1782061947000,-631.9,0.0003178,2]
[425979871,1782061947000,-579.02,0.0003178,2]
[425979873,1782061947000,-496.23714919,0.0003178,2]
[425979876,1782061947000,-500.0,0.0003178,2]
[425979875,1782061947000,-536.66,0.0003178,2]
[425979874,1782061947000,-1000.0,0.0003178,7]
[425979878,1782061947000,-508.36,0.0003178,2]
[425979868,1782061947000,-500.0,0.0003178,2]
[425979866,1782061947000,-361.87673446,0.0003175,7]
[425979865,1782061947000,-12500.0,0.0003175,2]
[425979864,1782061947000,-2500.0,0.0003175,2]
[425979855,1782061947000,-150.0,0.00031728,120]
[425979859,1782061947000,-785.0,0.00031735,2]
[425979860,1782061947000,-785.0,0.00031735,2]
[425979858,1782061947000,-785.0,0.00031735,2]
[425979863,1782061947000,-785.0,0.00031735,2]
[425979862,1782061947000,-785.0,0.00031735,2]
[425979872,1782061947000,-2687.78,0.0003178,2]
[425979861,1782061947000,-785.0,0.00031735,2]
[425979870,1782061947000,-576.16,0.0003178,2]
[425979869,1782061947000,-500.0,0.0003178,2]
[425979867,1782061947000,-150.0,0.00031776,120]
[425979890,1782061948000,-372.95402427,0.0003178,2]
[425979889,1782061948000,-978.67047102,0.0003178,2]
[425979887,1782061948000,-934.0,0.00022579,2]
[425979888,1782061948000,-500.0,0.00027945,2]
[425979891,1782061983000,3376.96195402,0.00010423,2]
[425979892,1782061986000,-520.72,0.00010501,2]
[425979893,1782062000000,-520.72,0.00010501,2]
[425979895,1782062003000,-150.0,0.00010626,2]
[425979894,1782062003000,-388.99,0.00010501,2]
[425979896,1782062003000,-370.72,0.00010772,2]
[425979900,1782062004000,302.96,0.00010054,2]
[425979899,1782062004000,302.96,0.00010011,2]
[425979898,1782062004000,302.96,9.985e-05,2]
[425979897,1782062004000,302.96,9.976e-05,2]
[425979904,1782062005000,302.96,0.00010401,2]
[425979903,1782062005000,302.96,0.00010288,2]
[425979901,1782062005000,302.96,0.00010115,2]
[425979902,1782062005000,302.96,0.00010193,2]
[425979907,1782062127000,-160.0,0.00010503,2]
[425979908,1782062181000,-160.0,0.00010504,2]
[425979909,1782062234000,-250.0,0.00010518,2]
[425979910,1782062235000,167.78,0.00010319,2]
[425979911,1782062236000,553.38,0.00010305,2]
[425979913,1782062237000,-250.0,0.00010646,2]
[425979912,1782062237000,-302.96,0.00010532,2]
[425979914,1782062258000,-150.0,0.00010679,2]
[425979915,1782062288000,-152.96,0.00010679,2]
[425979916,1782062288000,1044.24326407,0.00010017,2]
[425979917,1782062341000,-281.70707831,0.00010742,2]
[425979918,1782062395000,-174.97158321,0.00010742,2]
[425979919,1782062407000,794.400925,7.945e-05,2]
[425979923,1782062449000,-189.07949596,0.00010642,2]
[425979924,1782062490000,200.0,0.00010344,2]
[425979925,1782062503000,-197.19495481,0.00010741,2]
[425979926,1782062556000,-166.1,0.00010646,2]
[425979927,1782062610000,-500.0,0.0001074,2]
[425979928,1782062628000,1001.0,0.00029041,120]
[425979930,1782062696000,1606.52,0.00010323,2]
[425979931,1782062751000,442.82,0.00010303,2]
[425979932,1782062767000,-189.07949596,0.00010639,2]
[425979933,1782062804000,-211.98347835,0.00010743,2]
[425979934,1782062821000,-38.01652165,0.00010743,2]
[425979935,1782062874000,-971.29331867,0.00010689,2]
[425979936,1782062889000,-971.29331867,0.00010689,2]
[425979937,1782062890000,150.0,0.00010368,2]
[425979938,1782062906000,-216.32317309,0.00010752,2]
[425979939,1782062933000,-373.333363,0.00010697,2]
[425979940,1782062933000,-186.27525565,0.0001077,2]
[425979941,1782062933000,-413.55913378,0.0001077,2]
[425979942,1782062933000,-184.01726051,0.0001077,2]
[425979943,1782062933000,-500.0,0.0001077,2]
[425979944,1782062933000,-500.0,0.0001077,2]
[425979945,1782062933000,-500.0,0.0001077,2]
[425979946,1782062933000,-212.80666323,0.0001077,2]
[425979948,1782062933000,-500.0,0.0001077,2]
[425979949,1782062933000,-350.26945995,0.0001077,2]
[425979950,1782062933000,-500.0,0.0001077,2]
[425979951,1782062933000,-500.0,0.0001077,2]
[425979952,1782062933000,-500.0,0.0001077,2]
[425979953,1782062933000,-462.67206625,0.0001077,2]
[425979947,1782062933000,-57.05014997,0.0001077,2]
[425979957,1782062934000,-314.76248061,0.0001077,2]
[425979956,1782062934000,-500.0,0.0001077,2]
[425979955,1782062934000,-427.24195694,0.0001077,2]
[425979954,1782062934000,-37.32793375,0.0001077,2]
[425979958,1782062957000,-185.23751939,0.0001077,2]
[425979959,1782062960000,-3010.37799064,0.00010772,2]
[425979960,1782062960000,-1073.33291214,0.00010772,2]
[425979966,1782062985000,-166.66,0.00010959,2]
[425979967,1782062985000,-244.0,0.00010986,2]
[425979965,1782062985000,-150.0,0.00010879,2]
[425979963,1782062985000,-1893.35837816,0.00010817,2]
[425979964,1782062985000,-302.96,0.00010844,2]
[425979962,1782062985000,-420.36767361,0.00010817,2]
[425979961,1782062985000,-3092.0522087,0.00010817,2]
[425979968,1782062986000,-302.96,0.00011026,2]
[425979969,1782062986000,-32.11383054,0.00011047,2]
[425979973,1782063010000,-488.60616946,0.00011047,2]
[425979975,1782063012000,-520.72,0.00011062,2]
[425979977,1782063012000,-520.72,0.00011079,2]
[425979979,1782063012000,-1495.32165052,0.00011097,2]
[425979978,1782063012000,-520.72,0.00011097,2]
[425979980,1782063012000,-3224.14165052,0.00011097,2]
[425979976,1782063012000,-166.66,0.00011068,2]
[425979981,1782063013000,-407.66457836,0.00011097,2]
[425979982,1782063017000,150.0,0.00030136,120]
[425980007,1782063032000,-263.20718267,0.0001077,2]
[425980010,1782063032000,-500.0,0.0001077,2]
[425980011,1782063032000,-500.0,0.0001077,2]
[425980012,1782063032000,-500.0,0.0001077,2]
[425980013,1782063032000,-500.0,0.0001077,2]
[425980015,1782063032000,-500.0,0.0001077,2]
[425980017,1782063032000,-500.0,0.0001077,2]
[425980008,1782063032000,-500.0,0.0001077,2]
[425980019,1782063032000,-500.0,0.0001077,2]
[425980021,1782063032000,-500.0,0.0001077,2]
[425980016,1782063032000,-500.0,0.0001077,2]
[425980018,1782063032000,-632.01429586,0.0001077,2]
[425980014,1782063032000,-500.0,0.0001077,2]
[425980001,1782063032000,-500.0,0.0001077,2]
[425980004,1782063032000,-236.79281733,0.0001077,2]
[425980003,1782063032000,-500.0,0.0001077,2]
[425980020,1782063032000,-500.0,0.0001077,2]
[425980002,1782063032000,-500.0,0.0001077,2]
[425980000,1782063032000,-500.0,0.0001077,2]
[425979999,1782063032000,-211.06839265,0.0001077,2]
[425979998,1782063032000,-269.99616845,0.0001077,2]
[425979995,1782063032000,-308.02504545,0.0001077,2]
[425979996,1782063032000,-500.0,0.0001077,2]
[425979997,1782063032000,-18.9354389,0.0001077,2]
[425979993,1782063032000,-303.0,0.0001077,2]
[425979990,1782063032000,-500.0,0.0001077,2]
[425979991,1782063032000,-500.0,0.0001077,2]
[425979992,1782063032000,-197.0,0.0001077,2]
[425979994,1782063032000,-191.97495455,0.0001077,2]
[425980009,1782063032000,-500.0,0.0001077,2]
[425980023,1782063032000,-500.0,0.0001077,2]
[425980045,1782063032000,-520.72,0.00011414,2]
[425980024,1782063032000,-4872.8621206,0.00011097,2]
[425980054,1782063032000,-520.72,0.00011545,2]
[425980022,1782063032000,-500.0,0.0001077,2]
[425980051,1782063032000,-1219.16853208,0.0001148,2]
[425980053,1782063032000,-520.72,0.00011511,2]
[425980048,1782063032000,-520.72,0.00011446,2]
[425980050,1782063032000,-9286.59816224,0.0001148,2]
[425980049,1782063032000,-520.72,0.00011478,2]
[425980047,1782063032000,-609.40578732,0.00011427,2]
[425980046,1782063032000,-150.0,0.00011427,2]
[425980041,1782063032000,-520.72,0.00011355,2]
[425980039,1782063032000,-799.0241596,0.00011304,2]
[425980043,1782063032000,-520.72,0.00011384,2]
[425980040,1782063032000,-520.72,0.00011327,2]
[425980044,1782063032000,-166.66,0.00011397,2]
[425980052,1782063032000,-166.66,0.00011507,2]
[425980038,1782063032000,-520.72,0.000113,2]
[425980042,1782063032000,-532.68277307,0.00011375,2]
[425980027,1782063032000,-520.72,0.00011156,2]
[425980026,1782063032000,-520.72,0.00011135,2]
[425980025,1782063032000,-520.72,0.00011116,2]
[425980029,1782063032000,-520.72,0.00011177,2]
[425980031,1782063032000,-1598.0483192,0.00011193,2]
[425980032,1782063032000,-520.72,0.000112,2]
[425980028,1782063032000,-150.0,0.00011172,2]
[425980034,1782063032000,-520.72,0.00011248,2]
[425980035,1782063032000,-520.72,0.00011273,2]
[425980033,1782063032000,-520.72,0.00011223,2]
[425980030,1782063032000,-166.66,0.00011178,2]
[425980037,1782063032000,-166.66,0.00011288,2]
[425980036,1782063032000,-196.0,0.00011283,2]
[425980085,1782063033000,-167.78,0.00012899,2]
[425980091,1782063033000,-500.0,0.00013698,2]
[425980094,1782063033000,-500.0,0.00013698,2]
[425980092,1782063033000,-190.41371826,0.00013698,2]
[425980089,1782063033000,-433.0,0.00013655,2]
[425980090,1782063033000,-500.0,0.00013698,2]
[425980086,1782063033000,-1606.52,0.00012904,2]
[425980088,1782063033000,-2000.0,0.00013498,2]
[425980093,1782063033000,-500.0,0.00013698,2]
[425980087,1782063033000,-9286.59816218,0.00013481,2]
[425980095,1782063033000,-500.0,0.00013698,2]
[425980103,1782063033000,-500.0,0.00013698,2]
[425980098,1782063033000,-500.0,0.00013698,2]
[425980099,1782063033000,-503.97099734,0.00013698,2]
[425980097,1782063033000,-500.0,0.00013698,2]
[425980100,1782063033000,-500.0,0.00013698,2]
[425980101,1782063033000,-500.0,0.00013698,2]
[425980102,1782063033000,-500.0,0.00013698,2]
[425980104,1782063033000,-500.0,0.00013698,2]
[425980106,1782063033000,-500.0,0.00013698,2]
[425980107,1782063033000,-500.0,0.00013698,2]
[425980083,1782063033000,-224.53,0.00012828,2]
[425980108,1782063033000,-78.7316724,0.00013699,2]
[425980096,1782063033000,-500.0,0.00013698,2]
[425980084,1782063033000,-442.82,0.00012878,2]
[425980069,1782063033000,-520.72,0.0001181,2]
[425980082,1782063033000,-255.0,0.0001249,2]
[425980056,1782063033000,-442.82,0.0001159,2]
[425980055,1782063033000,-520.72,0.0001158,2]
[425980058,1782063033000,-1606.52,0.00011613,2]
[425980057,1782063033000,-150.0,0.00011602,7]
[425980059,1782063033000,-520.72,0.00011616,2]
[425980061,1782063033000,-259.2119271,0.0001169,2]
[425980062,1782063033000,-261.5080729,0.0001169,2]
[425980060,1782063033000,-520.72,0.00011653,2]
[425980063,1782063033000,-193.0,0.00011703,2]
[425980064,1782063033000,-500.0,0.00011703,2]
[425980066,1782063033000,-250.0,0.00011758,2]
[425980065,1782063033000,-520.72,0.00011729,2]
[425980080,1782063033000,-500.0,0.00012088,2]
[425980067,1782063033000,-500.0,0.00011758,2]
[425980068,1782063033000,-520.72,0.00011769,2]
[425980071,1782063033000,-250.0,0.00011847,2]
[425980070,1782063033000,-500.0,0.00011814,2]
[425980074,1782063033000,-520.72,0.00011937,2]
[425980073,1782063033000,-520.72,0.00011894,2]
[425980072,1782063033000,-520.72,0.00011851,2]
[425980075,1782063033000,-520.72,0.00011982,2]
[425980078,1782063033000,-520.72,0.00012027,2]
[425980077,1782063033000,-151.0,0.00012,2]
[425980079,1782063033000,-520.72,0.00012074,2]
[425980076,1782063033000,-151.0,0.00012,2]
[425980081,1782063033000,-167.53,0.00012329,2]
[425980105,1782063033000,-500.0,0.00013698,2]
[425980109,1782063033000,-121.2683276,0.00013699,2]
[425980118,1782063033000,-200.0,0.000149,5]
[425980110,1782063033000,-250.0,0.00014,2]
[425980142,1782063033000,-2245.05,0.00018356,2]
[425980144,1782063033000,-1865.36488656,0.00018774,2]